Cogmind - Beta 16 @@@ ROGUE MODE // 2026.01.19 @ 02:21:34 Player: Phxntom Result: Destroyed by Y-45 Defender with Heavy Assault Rifle Performance ------------- Evolutions (2) 1000 Regions Visited (5) 1000 Robots Destroyed (34) 170 Value Destroyed (1346) 1346 Prototype IDs (2) 40 Alien Tech Used (0) 0 Bonus (206) 206 TOTAL SCORE: 3762 Bonus ------- Follower Combat Kills 243 Friendly Fire -37 Cogmind --------- Core Integrity 0/550 Matter 295/300 Energy 290/305 System Corruption 4% Temperature Warning (349) Movement Core (700) Ox13 Location -8/Storage Parts ------- > --- POWER (2) -------- Improved Ion Engine Light Deuterium Engine > --- PROPULSION (2) --- Wheel > --- UTILITY (5) ------ Large Storage Unit Advanced Visual Processing Unit Improved Sensor Array Improved Signal Interpreter Light Armor Plating > --- WEAPON (2) ------- Heavy Particle Gun Heavy Particle Gun > --- INVENTORY (15) --- Light Armored Exoskeleton Improved Heat Sink Improved Heat Sink Improved Heat Sink Large Storage Unit Trap Scanner Improved Sensor Array Improved Sensor Array Advanced Targeting Computer Arc Projector Improved Grenade Launcher Missile Launcher Missile Launcher Peak State ------------ > --- POWER ------------ Light Deuterium Engine Light Deuterium Engine > --- PROPULSION ------- Compact Wheel Armored Wheel > --- UTILITY ---------- Improved Heat Sink Large Storage Unit Improved Sensor Array Improved Signal Interpreter Core Shielding > --- WEAPON ----------- Heavy Particle Gun Heavy Assault Rifle > --- INVENTORY -------- Deuterium Engine Light Nuclear Core Large Storage Unit Trap Scanner Improved Sensor Array Improved Sensor Array Arc Projector Arc Projector Heavy Particle Gun Heavy Particle Gun Improved Grenade Launcher Missile Launcher Missile Launcher [Rating: 30] Favorites ----------- Power Light Nuclear Core Engine Light Deuterium Engine Power Core Light Nuclear Core Propulsion Compact Wheel Treads Light Treads Wheel Compact Wheel Utility Small Storage Unit Device Improved Sensor Array Storage Small Storage Unit Processor Improved Signal Interpreter Protection Core Shielding Weapon Heavy Particle Gun Energy Gun Heavy Particle Gun Ballistic Gun Light Assault Rifle Launcher Missile Launcher Build | -11 -10 -10 -10 -8 -8 ------- Run | Yrd Mat Min Sub Mat Sto Slots Evolved 4 | . . . . 4 . Power 1 | . . . . 1 . Propulsion . | . . . . . . Utility 3 | . . . . 3 . Weapon . | . . . . . . Parts Attached 54 | 4 8 2 1 24 15 Power 13 | 1 1 1 . 5 5 Engine 6 | 1 . . . 2 3 Core 7 | . 1 1 . 3 2 Reactor . | . . . . . . Propulsion 12 | 2 2 . 1 2 5 Treads 3 | . 2 . . . 1 Leg . | . . . . . . Wheel 9 | 2 . . 1 2 4 Hover . | . . . . . . Flight . | . . . . . . Utility 15 | 1 2 . . 10 2 Device 6 | . 1 . . 5 . Storage 4 | 1 . . . 3 . Processor 2 | . . . . 1 1 Hackware . | . . . . . . Protection 3 | . 1 . . 1 1 Artifact . | . . . . . . Weapon 14 | . 3 1 . 7 3 Energy Gun 11 | . 2 1 . 5 3 Energy Cannon . | . . . . . . Ballistic Gun 2 | . 1 . . 1 . Ballistic Cannon . | . . . . . . Launcher 1 | . . . . 1 . Special Weapon . | . . . . . . Impact Weapon . | . . . . . . Slashing Weapon . | . . . . . . Piercing Weapon . | . . . . . . Special Melee Weapon . | . . . . . . Unidentified Prototypes 2 | . . . . 2 . Parts Lost 27 | . 3 . . 12 12 Power 7 | . . . . 4 3 Propulsion 7 | . 1 . . 1 5 Utility 7 | . 1 . . 4 2 Weapon 6 | . 1 . . 3 2 Highest Loss Streak 11 | . 3 . . 11 8 To Critical Strikes . | . . . . . . Average Backups 9 | 4 6 7 7 7 12 Power 1 | . 1 2 3 2 . Propulsion 1 | 2 3 2 1 1 1 Utility 2 | . . 2 2 . 5 Weapon 3 | 1 1 . 1 3 4 Tool/Special . | . . . . . . Unused Backups 19 | . 4 1 . 3 11 Power 2 | . . . . 2 . Propulsion 2 | . 2 . . . . Utility 9 | . . 1 . . 8 Weapon 6 | . 2 . . 1 3 Tool/Special . | . . . . . . Average Slot Usage (%) 94 | . 95 97 97 90 95 Engine 8 | . 10 . . 10 9 Core 6 | . 3 14 14 6 6 Treads 6 | . 11 14 . . 6 Wheel 14 | . 15 14 26 17 11 Device 11 | . 3 14 14 19 9 Storage 10 | . 14 14 14 8 9 Processor 6 | . . . . 2 17 Protection 7 | . 8 . . 8 8 Energy Gun 13 | . 13 15 14 9 15 Ballistic Gun 6 | . 13 10 14 5 1 Peak Build Rating 30 | 4 10 11 10 30 30 Average Rating 19 | 3 7 10 10 21 28 On Entrance 10 | . 4 10 11 10 30 Avg Prop Armor Cover (%) 11 | . 14 14 . . 9 Naked Turns . | . . . . . . Heaviest Build 43 | 10 15 17 15 39 43 Greatest Support 40 | 26 40 16 32 32 28 Greatest Overweight (x) 13 | 1 . 1 . 1 13 Average Overweight (x) . | . . . . . 3 Largest Inventory Capacity 15 | 8 8 8 8 15 15 Average Capacity 10 | 7 8 8 8 8 15 Most Carried 15 | 8 8 8 8 15 15 Average Carried 9 | 4 6 7 7 7 13 Final Capacity 15 | 8 8 8 8 15 15 Final Carried 15 | 8 7 8 7 15 14 Class Distribution -------------------- 68% | Mutant 14% | Scavenger-Skirmisher 8% | Commander-Skirmisher 7% | Skirmisher Dominant Class ---------------- Mutant | -10/Materials Mutant | -10/Mines Mutant | -10/Subcaves Mutant | -8/Materials Scavenger-Skirmisher | -8/Storage Resources | -11 -10 -10 -10 -8 -8 ----------- Run | Yrd Mat Min Sub Mat Sto Matter Collected 893 | 223 113 44 . 230 283 Remotely . | . . . . . . Salvage Created 1545 | . 263 93 . 480 709 Parts 71 | . 11 2 . 30 28 Haulers Intercepted . | . . . . . . Recyclers Shooed 1 | . . . . . 1 Parts Field Recycled . | . . . . . . Retrieved Matter . | . . . . . . Parts Self-Destructed 5 | . . . 5 . . Prevented . | . . . . . . Parts Restored . | . . . . . . Kills | -11 -10 -10 -10 -8 -8 ------- Run | Yrd Mat Min Sub Mat Sto Combat Hostiles Destroyed 32 | . 6 2 . 11 13 Melee 1 | . . . . 1 . Guns 31 | . 6 2 . 10 13 Classes Destroyed 5 | . 1 1 . 2 1 Watcher 1 | . . . . . 1 Swarmer 3 | . . . . 3 . Grunt 22 | . 6 2 . 5 9 Sentry 7 | . . . . 3 4 Zionite 1 | . . 1 . . . Best Kill Streak 3 | . 3 1 . 3 2 Combat Bots Only 3 | . 3 1 . 3 2 Max Kills in Single Turn 2 | . 1 1 . 1 2 Gunslinging 1 | . . . . . 1 Exploded . | . . . . . . Melee 1 | . . . . 1 . Uniques/NPCs Destroyed . | . . . . . . Combat | -11 -10 -10 -10 -8 -8 -------- Run | Yrd Mat Min Sub Mat Sto Hostile Shots Fired 268 | . 53 14 . 93 108 Missed 54 | . 10 2 . 20 22 Hits 214 | . 43 12 . 73 86 Projectile 214 | . 43 12 . 73 86 Critical Strikes 14 | . . 1 . 4 9 Damage Taken 3250 | . 530 141 . 1204 1375 Core 645 | . 60 34 . 254 297 Absorbed by Shields . | . . . . . . Redirected to Shielding 100 | . 52 . . 32 16 Core Remaining (%) 81 | 100 . . 62 . . Volleys Fired 133 | . 31 13 . 37 52 Largest 2 | . 2 2 . 2 2 Hottest 130 | . 85 130 . 126 110 Shots Fired 230 | . 56 20 . 62 92 Gun 230 | . 56 20 . 62 92 Cannon . | . . . . . . Launcher . | . . . . . . Special . | . . . . . . Kinetic 60 | . 31 3 . 14 12 Thermal 160 | . 25 17 . 48 70 Explosive . | . . . . . . Electromagnetic 10 | . . . . . 10 Robot Hit Streak 16 | . 7 4 . 11 16 Robot Miss Streak 3 | . 2 2 . 1 3 Penetration Max . | . . . . . . Secondary Targets 5 | . . . . 2 3 Max Gunslinging Chain 1 | . . . . 1 1 Shots Hit Robots 164 | . 38 12 . 49 65 Core Hits 80 | . 17 5 . 31 27 Critical Kills . | . . . . . . Critical Parts Destroyed . | . . . . . . Critical Strikes 9 | . 4 . . . 5 Burn 9 | . 4 . . . 5 Melee Attacks . | . . . . . . Impact . | . . . . . . Slashing . | . . . . . . Piercing . | . . . . . . Sneak Attacks . | . . . . . . Combat Hostiles . | . . . . . . Follow-up Attacks . | . . . . . . Damage Inflicted 2535 | . 372 182 . 820 1161 Guns 2454 | . 372 182 . 758 1142 Cannons . | . . . . . . Explosions . | . . . . . . Melee . | . . . . . . Ramming 81 | . . . . 62 19 Kinetic 410 | . 184 . . 112 114 Thermal 1942 | . 188 182 . 646 926 Explosive . | . . . . . . Electromagnetic 102 | . . . . . 102 Impact . | . . . . . . Slashing . | . . . . . . Piercing . | . . . . . . Highest Corruption 4 | . . . . 3 4 Average Corruption 3 | . . . . 3 3 Corruption Purged . | . . . . . . Corruption Blocked . | . . . . . . Effects 28 | . . . . 7 21 Message Errors 7 | . . . . . 7 Matter Fused 5 | . . . . 3 2 Heat Flow Errors 3 | . . . . . 3 Energy Discharges 2 | . . . . . 2 Data Loss (minor) 6 | . . . . 3 3 Data Loss (major) 1 | . . . . . 1 Misfires 2 | . . . . 1 1 Weapon Failures 2 | . . . . . 2 Overload Shots . | . . . . . . Overflow Damage . | . . . . . . Projectiles . | . . . . . . Explosions . | . . . . . . Melee . | . . . . . . Knockbacks 1 | . . . . 1 . Impact 1 | . . . . 1 . Kinetic . | . . . . . . Secondary . | . . . . . . Self-Inflicted Damage 33 | . . . . 24 9 Shots . | . . . . . . Rammed 28 | . . . . 24 4 Targets Rammed 28 | . . . . 24 4 Kicked . | . . . . . . Crushed . | . . . . . . Highest Temperature 534 | . 412 482 . 534 453 Average Temperature 185 | . 163 200 . 230 169 Received Heat Transfer 1779 | . 303 99 . 594 783 Effects 40 | . 1 5 . 18 16 Shutdowns 11 | . . . . 5 6 Energy Bleed 4 | . 1 1 . . 2 Interference 13 | . . 3 . 5 5 Matter Decay 2 | . . . . 1 1 Short Circuit 2 | . . . . . 2 Damage (minor) 2 | . . 1 . 1 . Damage (major) 5 | . . . . 5 . Damage (core) 1 | . . . . 1 . Siege Activations . | . . . . . . Martial Activations . | . . . . . . Shielding Activations . | . . . . . . Robots Disrupted . | . . . . . . Combat Hostiles . | . . . . . . Robots Corrupted . | . . . . . . Combat Hostiles . | . . . . . . Parts Fried . | . . . . . . Impact Corruptions . | . . . . . . Robots Melted . | . . . . . . Combat Hostiles . | . . . . . . Parts Melted 19 | . 1 2 . 4 12 Heat Transferred 4912 | . 851 444 . 1434 2183 Parts Sabotaged . | . . . . . . Parts Stolen . | . . . . . . Parts Stripped . | . . . . . . Power Chain Reactions . | . . . . . . Alert | -11 -10 -10 -10 -8 -8 ------- Run | Yrd Mat Min Sub Mat Sto Maximum Alert Level . | . . . . . . Low Security (%) 100 | 100 100 100 . 100 100 Level 1 . | . . . . . . Level 2 . | . . . . . . Level 3 . | . . . . . . Level 4 . | . . . . . . Level 5 . | . . . . . . High Security . | . . . . . . Max Security . | . . . . . . Peak Influence 154 | . 50 35 . 100 154 Initial . | . . . . . . Average 32 | . 12 10 . 21 62 Influence Increases 1203 | . 154 65 . 323 661 Destroy 0b10 Robot/C 780 | . 120 40 . 220 400 Destroy 0b10 Robot/NC 10 | . . . . . 10 Destroy Leader 172 | . 20 10 . 50 92 Allied During Kill 120 | . . . . . 120 Successful Hack 28 | . 14 . . 7 7 Disable Machine 30 | . . . . . 30 Destroy Structure 3 | . . . . 1 2 Partial Spotted 15 | . . . . 15 . Lose Combat Pursuer 45 | . . 15 . 30 . Influence Decreases 1145 | . 154 65 . 323 603 Time Decay 785 | . 144 65 . 243 333 Lost Part 180 | . 10 . . 80 90 Lost Ally 180 | . . . . . 180 Squads Dispatched 6 | . 2 . . 2 2 Investigation . | . . . . . . Extermination . | . . . . . . Reinforcement 6 | . 2 . . 2 2 Assault . | . . . . . . Garrison . | . . . . . . Intercept . | . . . . . . Searches Triggered . | . . . . . . Construction Impeded . | . . . . . . Haulers Reinforced . | . . . . . . Active Scanning Responses . | . . . . . . Cargo Convoy Interrupts . | . . . . . . Stealth | -11 -10 -10 -10 -8 -8 --------- Run | Yrd Mat Min Sub Mat Sto Distress Signals 5 | . . . . 1 4 Communications Jammed . | . . . . . . Distress Signals . | . . . . . . Times Spotted 62 | . 15 3 . 16 28 Peak Tracking Total 6 | . 4 2 . 5 6 Tactical Retreats 2 | . . 1 . 1 . Traps | -11 -10 -10 -10 -8 -8 ------- Run | Yrd Mat Min Sub Mat Sto Traps Triggered 1 | . . . . . 1 Indirectly . | . . . . . . Trap Hack Attempts . | . . . . . . Triggered . | . . . . . . Disarmed . | . . . . . . Reprogrammed . | . . . . . . Reused . | . . . . . . Traps Extracted . | . . . . . . Installed . | . . . . . . Triggered . | . . . . . . Machines | -11 -10 -10 -10 -8 -8 ---------- Run | Yrd Mat Min Sub Mat Sto Machines Disabled 2 | . . . . . 2 Max in Single Turn 1 | . . . . . 1 Machines Repaired . | . . . . . . Machines Dismantled . | . . . . . . Machines Sabotaged . | . . . . . . Overloaded Fab Kills . | . . . . . . Hacking | -11 -10 -10 -10 -8 -8 --------- Run | Yrd Mat Min Sub Mat Sto Machines Accessed 5 | . 2 . . 1 2 Terminals 5 | . 2 . . 1 2 Fabricators . | . . . . . . Repair Stations . | . . . . . . Recycling Units . | . . . . . . Scanalyzers . | . . . . . . Garrison Access . | . . . . . . Total Hacks 10 | . 6 . . 2 2 Successful 5 | . 2 . . 1 2 Failed 5 | . 4 . . 1 . Catastrophic 2 | . 2 . . . . Database Lockouts . | . . . . . . Manual 6 | . 4 . . 2 . Terminals 10 | . 6 . . 2 2 Fabricators . | . . . . . . Repair Stations . | . . . . . . Recycling Units . | . . . . . . Scanalyzers . | . . . . . . Garrison Access . | . . . . . . Terminal Hacks 5 | . 2 . . 1 2 Open Door 2 | . . . . . 2 Branch Access Points 1 | . . . . 1 . Locate Traps 1 | . 1 . . . . Zone Layout 1 | . 1 . . . . Fabricator Hacks . | . . . . . . Repair Station Hacks . | . . . . . . Recycling Unit Hacks . | . . . . . . Scanalyzer . | . . . . . . Garrison Access Hacks . | . . . . . . Unauthorized Hacks . | . . . . . . Terminals . | . . . . . . Fabricators . | . . . . . . Repair Stations . | . . . . . . Recycling Units . | . . . . . . Scanalyzers . | . . . . . . Garrison Access . | . . . . . . Data Cores Recovered . | . . . . . . Used . | . . . . . . Hacking Detections 2 | . 2 . . . . Full Trace Events 1 | . 1 . . . . Feedback Events . | . . . . . . Feedback Blocked . | . . . . . . Robot Schematics Acquired . | . . . . . . Robots Built . | . . . . . . Authchips . | . . . . . . Time . | . . . . . . Total Robot Build Rating . | . . . . . . Part Schematics Acquired . | . . . . . . Parts Built . | . . . . . . Authchips . | . . . . . . Time . | . . . . . . Total Part Build Rating . | . . . . . . Part Studies Acquired . | . . . . . . Parts Repaired . | . . . . . . Time . | . . . . . . Parts Recycled . | . . . . . . Recycled Matter . | . . . . . . Retrieved Matter . | . . . . . . Retrieved Components . | . . . . . . Parts Scanalyzed . | . . . . . . Part Schematics Acquired . | . . . . . . Parts Damaged . | . . . . . . Bothacking | -11 -10 -10 -10 -8 -8 ------------ Run | Yrd Mat Min Sub Mat Sto Used RIF Installer . | . . . . . . Robots Hacked . | . . . . . . Non-combat . | . . . . . . Combat . | . . . . . . Robot Hacks Applied . | . . . . . . Relay Couplers Released . | . . . . . . Fabnet Peak Effective % . | . . . . . . Robots Rewired . | . . . . . . Allies Hacked . | . . . . . . Hacks Repelled . | . . . . . . Allies | -11 -10 -10 -10 -8 -8 -------- Run | Yrd Mat Min Sub Mat Sto Total Allies 12 | . . 2 . . 10 Largest Group 10 | . . 2 1 . 10 Highest-Rated Group 173 | . . 45 31 . 173 Highest-Rated Ally 31 | . . 31 31 . 29 Total Orders . | . . . . . . Ally Attacks 109 | . . . . . 109 Total Damage 1260 | . . . . . 1260 Kills 9 | . . . . . 9 Allies Corrupted . | . . . . . . Allies Melted . | . . . . . . Intel | -11 -10 -10 -10 -8 -8 ------- Run | Yrd Mat Min Sub Mat Sto Active Infowar (turns) 1910 | . 123 108 59 733 887 Optics 802 | . . . . . 802 Sensors 1870 | . 123 108 59 733 847 Structural 276 | . . . . 276 . Robot Analysis Total . | . . . . . . Derelict Logs Recovered 1 | . . . 1 . . Drone Launches . | . . . . . . Drone Recoveries . | . . . . . . Exploration | -11 -10 -10 -10 -8 -8 ------------- Run | Yrd Mat Min Sub Mat Sto Turns Passed 2566 | 55 544 215 59 798 895 Spaces Moved 1417 | 48 360 139 58 405 407 Core 10 | 9 . . . . 1 Treads 35 | . 35 . . . . Legs . | . . . . . . Wheels 1372 | 39 325 139 58 405 406 Hover . | . . . . . . Flight . | . . . . . . Fastest Speed 50 | 50 90 100 100 95 95 Average Speed 108 | 87 100 100 100 99 130 Slowest Speed 700 | 100 160 115 100 115 700 Overloaded Moves . | . . . . . . Propulsion Burnouts . | . . . . . . Robots Hopped . | . . . . . . Potential Cave-ins . | . . . . . . Cave-ins Triggered . | . . . . . . Exploration Rate (%) 31 | 5 51 31 9 38 57 Regions Visited 5 Branch Regions 3 Pre-discovered Areas . | . . . . . . Known Exits Taken 1 | . . . . 1 . Unknown Exits Taken 4 | 1 1 1 1 . . Scrap Searched . | . . . . . . Spaces Dug . | . . . . . . Terrain Destroyed . | . . . . . . Melee . | . . . . . . Projectile . | . . . . . . AOE . | . . . . . . Terrain Rammed . | . . . . . . Walls Destroyed . | . . . . . . Machines Disabled . | . . . . . . Actions | -11 -10 -10 -10 -8 -8 --------- Run | Yrd Mat Min Sub Mat Sto Total 2233 | 59 495 198 59 744 678 Wait 495 | . 80 34 . 201 180 Move 1412 | 47 359 138 57 404 407 Hop . | . . . . . . Pick Up 58 | 8 9 4 . 30 7 Fast Attach 27 | 4 2 1 . 9 11 Attach 29 | . 5 1 1 14 8 Detach 8 | . 1 1 . 2 4 Swap 8 | . 2 1 . 5 . Drop 35 | . 6 5 1 18 5 Fire 133 | . 31 13 . 37 52 Melee . | . . . . . . Ram 28 | . . . . 24 4 Kick . | . . . . . . Crush . | . . . . . . Escape Stasis . | . . . . . . Rewire . | . . . . . . Trap . | . . . . . . Miscellaneous . | . . . . . . Route ------- -11/Scrapyard -10/Materials (discovered 2 exits: [*Min x2]) -10/Mines -10/Subcaves -8/Materials (discovered 2 exits: *Sto x2) -8/Storage History --------- Turn | Location | Event 25 | -11/Scrapyard | Discovered new exit (range 16) 56 | -11/Scrapyard | Entered Materials 306 | -10/Materials | Build established: Mutant 474 | -10/Materials | Lost 3 parts (1n1u1w) 487 | -10/Materials | Discovered new exit (range 15) 564 | -10/Materials | Discovered new exit (range 6) 600 | -10/Materials | Entered Mines 794 | -10/Mines | Discovered new exit (range 10) 815 | -10/Mines | Entered Subcaves 815 | -10/Subcaves | Accompanied by 1 ally 820 | -10/Subcaves | Led the pair of lost Derelicts to an unsafe place 866 | -10/Subcaves | Discovered new exit (range 8) 867 | -10/Subcaves | Learned Materials non-interactive machine intel 874 | -10/Subcaves | Entered Materials 874 | -8/Materials | Evolved 4 slots: Power x1, Utility x3 875 | -8/Materials | Loaded intel: 30 non-interactive machine locations 896 | -8/Materials | Identified exit to Storage 1237 | -8/Materials | Lost 11 parts (3p1n4u3w) 1672 | -8/Materials | Entered Storage 1727 | -8/Storage | Core integrity fell below 50% 1930 | -8/Storage | Lost 8 parts (2p3n1u2w) 1963 | -8/Storage | Assisted by bots powering up and referring to "LRC-V3" 2181 | -8/Storage | Lost 4 allies 2421 | -8/Storage | Core integrity fell below 20% 2483 | -8/Storage | Build established: Scavenger-Skirmisher 2554 | -8/Storage | Lost 4 allies 2567 | -8/Storage | Destroyed by Y-45 Defender with Heavy Assault Rifle Last Messages --------------- 02536_ Dropped Wheel. 02537_ Acquired Wheel. 02538_ Lgt. Nuclear Core melted. 02538_ G-47 Trooper destroyed. 02539_ Critical hit (Burn: +37). 02544_ G-47 Trooper destroyed. 02547_ Power failure, Imp. Ion Engine shutdown. 02548_ Power failure, Lgt. Deuterium Engine shutdown. 02548_ K-01 Serf collects debris. 02552_ Imp. Sensor Array broken. 02552_ Overheating: Short circuit. 02552_ Critical hit (Burn: +37). 02557_ U-05 Engineer builds a Door. 02559_ Overheating: System interference. 02559_ Adv. Visual Processing Unit temporarily disabled. 02559_ Imp. Signal Interpreter temporarily disabled. 02559_ Hvy. Particle Gun temporarily disabled. 02564_ Lgt. Treads destroyed. 02566_ Wheel broken. 02566_ Overheating: Short circuit. Map ----- +----------------------------------------------------+ | ?" """ #""" #?# ##########????? | | ?# #""" #?# # #????? | | ## """ #""" #?# # """"" ##???? | | # """ #""" #?# # """"" "#???? | | ?# """ #? #?# # """" T#???? | | ?# % #??? ??# + "#???? | | ###+##/#########+##### # ##???? | | # [ #????? | | % % + [] #????? | | % # [] ! #????? | | ######+##### % ######+###########????? | | ??# % # %# ! #????????? | | ??#! [ +% + """ """ #????????? | | ?##! [ ## #### """ """ #????????? | | ?#% [ ## #??# """ """ [ ######???? | | ?## ## #??# /% #???? | | ??# ## #??################# #???? | | ??# ## #?????????????###### #???? | | ### "T" ## #?????######### = # #???? | | # """ ##+###???#]] ]]]## ! # #???? | | ########### ##??#]] ]]]## #%#???? | | #????????#T #??#]] !## / #???? | | ###????????# #??# !##! # #???? | | ???????????# #??### ### [ # #???? | | ???????????#######???#T ## # #???? | | ?????????????????????##=[@ ## !# #???? | | ??????????????????????##Y######### #???? | | ????????????????#######%%%%% #???? | | ????????????????# #*%%##########???? | | ????????????????#""" #!* #????????????? | | ????????????????#""" #! #????????????? | | ????????????????#""" "]= #????????????? | | ????????????????# #%= #????????????? | | ????????????????# # #????????????? | | ????????????????# # #????????????? | | ????????????????# # #????????????? | | ????????????????####### #????????????? | | ?????????????????????? #????????????? | | ?????????????????????? #????????????? | | ?????????????????????? #????????????? | | ?????????????????????## #????????????? | | ??????????????????????# #????????????? | | ??????????????????????# #????????????? | | ??????????????????????# #????????????? | | ??????????????????????# #????????????? | | ?????????????????????? ????????????? | | ?????????????????????? ????????????? | | ???????????????????????## ????????????? | | ????????????????????????? ????????????? | | ????????????????????????? ????????????? | +----------------------------------------------------+ Best States ------------- Heat Dissipation 45 Energy Generation 23 Energy Capacity 380 Matter Stores 300 Matter Capacity 300 Sight Range 20 Robot Scan Range 15 Terrain Scan Density 10 Armor Coverage 150 Core Shielding 20 Propulsion Shielding 33 Evasion (%) 42 Recoil Reduction 2 Particle Charging 15 Item Schematics ----------------- None Robot Schematics ------------------ None Fabricated ------------ Nothing Repaired ---------- Nothing Studied --------- None Alien Tech Used ----------------- None Achievements -------------- Backstab Fist Fight The More The Merrier Challenges ------------ None Game ------ Seed RiotGunBarrier Manual? 0 Play Time 00:38:14 Cumulative 10.8 hours Start 2026.01.19 @ 01:44:36 End 2026.01.19 @ 02:21:34 Sessions 1 Manual Loads 0 Difficulty Rogue Special Mode None Game No. 13 Rogue 9 Adventurer 4 Explorer 0 Win Type - Total 0 Types 0/0/0/0/0/0/0/0/0/0 Lore% 2 Gallery% 13 Achievement% 13 Wizard Run 0 Options --------- Layout 0 ASCII 0 Keyboard 0 Movement Mouse Keybinds 0 Fullscreen 1 Font 24/Smallcaps Map View 38x25 Zoom Use 98% Tactical HUD 1 Map Filters NONE Filters NONE Steam 1 RUN: e2515e3e-ab9a-44b5-944f-5feff6b500fe